fUST/lending_fUST_20240425
["ID","MTS","AMOUNT","RATE_DAILY","PERIOD"]
[323434495,1713984694664,-500.0,0.00020273,2]
[323434496,1713984694673,-7231.97,0.00020273,2]
[323434497,1713984694682,-1109.8,0.00020273,2]
[323434498,1713984694692,-703.53,0.00020273,2]
[323434499,1713984694702,-1396.91,0.00020273,2]
[323434500,1713984694713,-1419.45,0.00020273,2]
[323434501,1713984694723,-8055.98,0.00020273,2]
[323434502,1713984694732,-10090.6,0.00020273,2]
[323434503,1713984694742,-7041.65,0.00020273,2]
[323434504,1713984694751,-522.15,0.00020273,2]
[323434505,1713984694761,-707.89,0.00020273,2]
[323434506,1713984694771,-2261.27,0.00020273,2]
[323434507,1713984694780,-2812.39,0.00020273,2]
[323434508,1713984694789,-1234.39,0.00020273,2]
[323434509,1713984694797,-1371.63,0.00020273,2]
[323434510,1713984694807,-3678.5,0.00020273,2]
[323434511,1713984694816,-6891.8,0.00020273,2]
[323434512,1713984694825,-704.21,0.00020273,2]
[323434513,1713984694834,-925.33,0.00020273,2]
[323434514,1713984694844,-911.08,0.00020273,2]
[323434515,1713984694853,-741.31,0.00020273,2]
[323434516,1713984694862,-500.0,0.00020273,2]
[323434517,1713984694871,-3135.11,0.00020273,2]
[323434518,1713984694880,-2399.0,0.00020273,2]
[323434519,1713984694889,-872.83,0.00020273,2]
[323434520,1713984694898,-500.0,0.00020273,2]
[323434521,1713984694908,-500.0,0.00020273,2]
[323434522,1713984694917,-3286.45,0.00020273,2]
[323434523,1713984694926,-612.33,0.00020273,2]
[323434524,1713984694935,-8567.18,0.00020273,2]
[323434525,1713984694945,-1176.79,0.00020273,2]
[323434526,1713984694954,-984.91,0.00020273,2]
[323434527,1713984694963,-500.0,0.00020273,2]
[323434528,1713984694972,-500.0,0.00020273,2]
[323434529,1713984694981,-1391.58,0.00020273,2]
[323434530,1713984694990,-1326.81,0.00020273,2]
[323434531,1713984695000,-275.37214622,0.00020273,2]
[323434532,1713984695010,-500.0,0.00020273,2]
[323434533,1713984695019,-604.22,0.00020273,2]
[323434534,1713984695028,-613.12,0.00020273,2]
[323434535,1713984695038,-2262.73,0.00020273,2]
[323434536,1713984695048,-692.01,0.00020273,2]
[323434537,1713984695059,-1674.86,0.00020273,2]
[323434538,1713984695068,-623.72,0.00020273,2]
[323434539,1713984695078,-500.0,0.00020273,2]
[323434540,1713984695088,-623.43,0.00020273,2]
[323434541,1713984695097,-500.0,0.00020273,2]
[323434542,1713984695107,-153.0,0.00020547,2]
[323434543,1713984695117,-153.0,0.00020547,2]
[323434544,1713984695127,-153.0,0.00020547,2]
[323434545,1713984695136,-153.0,0.00020547,2]
[323434546,1713984695146,-153.0,0.00020547,2]
[323434547,1713984695158,-153.0,0.00020547,2]
[323434548,1713984695168,-153.0,0.00020547,2]
[323434549,1713984695177,-153.0,0.00020547,2]
[323434550,1713984695187,-153.0,0.00020547,2]
[323434551,1713984695196,-153.0,0.00020547,2]
[323434552,1713984695206,-153.0,0.00020547,2]
[323434553,1713984695215,-153.0,0.00020547,2]
[323434554,1713984695225,-153.0,0.00020547,2]
[323434555,1713984695235,-153.0,0.00020547,2]
[323434556,1713984695244,-153.0,0.00020547,2]
[323434557,1713984695254,-153.0,0.00020547,2]
[323434558,1713984695264,-153.0,0.00020547,2]
[323434559,1713984695274,-153.0,0.00020547,2]
[323434560,1713984695288,-153.0,0.00020547,2]
[323434561,1713984695298,-155.3780445,0.00020547,2]
[323434562,1713984695307,-153.0,0.00020547,2]
[323434563,1713984695317,-153.0,0.00020547,2]
[323434564,1713984695329,-153.0,0.00020547,2]
[323434565,1713984695338,-196.2475202,0.00020547,2]
[323434566,1713984695348,-203.40291941,0.00020547,2]
[323434567,1713984695357,-500.0,0.00020547,2]
[323434568,1713984695366,-625.0,0.00020547,2]
[323434569,1713984695375,-674.8,0.00020547,2]
[323434570,1713984695384,-585.29,0.00020547,2]
[323434571,1713984695393,-716.83,0.00020547,2]
[323434572,1713984695403,-500.0,0.00020547,2]
[323434573,1713984695413,-290.02185903,0.00020547,2]
[323434574,1713984695423,-560.98,0.00020547,2]
[323434575,1713984695433,-722.43,0.00020547,2]
[323434576,1713984695442,-839.18,0.00020547,2]
[323434577,1713984695451,-500.0,0.00020547,2]
[323434578,1713984695460,-1155.53,0.00020547,2]
[323434579,1713984695470,-2033.21,0.00020547,2]
[323434580,1713984695479,-1717.84,0.00020547,2]
[323434581,1713984695489,-1292.95,0.00020547,2]
[323434582,1713984695499,-1786.12,0.00020547,2]
[323434583,1713984695508,-1139.75,0.00020547,2]
[323434584,1713984695518,-603.4,0.00020547,2]
[323434585,1713984695527,-978.62,0.00020547,2]
[323434586,1713984695536,-902.13,0.00020547,2]
[323434587,1713984695545,-999.37,0.00020547,2]
[323434588,1713984695555,-864.27,0.00020547,2]
[323434589,1713984695564,-789.38,0.00020547,2]
[323434590,1713984695573,-1005.48,0.00020547,2]
[323434591,1713984695583,-2278.55,0.00020547,2]
[323434592,1713984695592,-708.42,0.00020547,2]
[323434593,1713984695601,-500.0,0.00020547,2]
[323434594,1713984695611,-500.0,0.00020547,2]
[323434595,1713984695621,-785.8,0.00020547,2]
[323434596,1713984695630,-695.13,0.00020547,2]
[323434597,1713984695640,-999.88,0.00020547,2]
[323434598,1713984695649,-1909.77,0.00020547,2]
[323434599,1713984695660,-500.0,0.00020547,2]
[323434600,1713984695669,-634.31,0.00020547,2]
[323434601,1713984695679,-1645.24,0.00020547,2]
[323434602,1713984695688,-2192.71,0.00020547,2]
[323434603,1713984695697,-736.48,0.00020547,2]
[323434604,1713984695707,-500.0,0.00020547,2]
[323434605,1713984695717,-691.26,0.00020547,2]
[323434606,1713984695726,-500.0,0.00020547,2]
[323434607,1713984695736,-1002.4,0.00020547,2]
[323434608,1713984695745,-650.3,0.00020547,2]
[323434609,1713984695755,-1100.44,0.00020547,2]
[323434610,1713984695764,-693.43,0.00020547,2]
[323434611,1713984695774,-534.56,0.00020547,2]
[323434612,1713984695783,-500.0,0.00020547,2]
[323434613,1713984695793,-500.0,0.00020547,2]
[323434614,1713984695803,-1280.96,0.00020547,2]
[323434615,1713984695812,-515.07,0.00020547,2]
[323434616,1713984695822,-1572.17,0.00020547,2]
[323434617,1713984695831,-2597.28,0.00020547,2]
[323434618,1713984695840,-539.11,0.00020547,2]
[323434619,1713984695849,-1730.28,0.00020547,2]
[323434620,1713984695859,-500.0,0.00020547,2]
[323434621,1713984695868,-553.14,0.00020547,2]
[323434622,1713984695878,-1050.14,0.00020547,2]
[323434623,1713984695887,-2490.79,0.00020547,2]
[323434624,1713984695896,-939.73,0.00020547,2]
[323434625,1713984695908,-479.84,0.00020547,2]
[323434626,1713984695917,-500.0,0.00020547,2]
[323434627,1713984695931,-1217.82,0.00020547,2]
[323434628,1713984695940,-1977.88,0.00020547,2]
[323434629,1713984695949,-979.24,0.00020547,2]
[323434630,1713984695959,-571.61,0.00020547,2]
[323434631,1713984695969,-1094.17,0.00020547,2]
[323434632,1713984695978,-1357.41,0.00020547,2]
[323434633,1713984695989,-1382.9,0.00020547,2]
[323434634,1713984695998,-1158.93,0.00020547,2]
[323434635,1713984696009,-1002.6,0.00020547,2]
[323434636,1713984696019,-20762.57,0.00020547,2]
[323434637,1713984696029,-1565.04,0.00020547,2]
[323434638,1713984696039,-1005.95,0.00020547,2]
[323434639,1713984696049,-19373.57,0.00020547,2]
[323434640,1713984696059,-908.92,0.00020547,2]
[323434641,1713984696068,-1126.69,0.00020547,2]
[323434642,1713984696078,-1323.24,0.00020547,2]
[323434643,1713984696088,-2676.08,0.00020547,2]
[323434644,1713984696098,-541.01,0.00020547,2]
[323434645,1713984696108,-4954.95,0.00020547,2]
[323434646,1713984696118,-637.03,0.00020547,2]
[323434647,1713984696128,-806.42,0.00020547,2]
[323434648,1713984696139,-3000.0,0.00020547,2]
[323434649,1713984696149,-3000.0,0.00020547,2]
[323434650,1713984696164,-3000.0,0.00020547,2]
[323434651,1713984696174,-3000.0,0.00020547,2]
[323434652,1713984696184,-12995.55,0.00020547,2]
[323434653,1713984696194,-3000.0,0.00020547,2]
[323434654,1713984696205,-3000.0,0.00020547,2]
[323434655,1713984696214,-3000.0,0.00020547,2]
[323434656,1713984696225,-3000.0,0.00020547,2]
[323434657,1713984696390,-3000.0,0.00020547,2]
[323434658,1713984696401,-2682.8,0.00020547,2]
[323434659,1713984696417,-3000.0,0.00020547,2]
[323434660,1713984696428,-1986.10424996,0.00020547,2]
[323434661,1713984696438,-1763.41,0.00020547,2]
[323434662,1713984696447,-500.0,0.00020547,2]
[323434663,1713984696457,-7231.97,0.00020547,2]
[323434664,1713984696466,-1109.8,0.00020547,2]
[323434665,1713984696476,-703.53,0.00020547,2]
[323434666,1713984696486,-1396.91,0.00020547,2]
[323434667,1713984696496,-1419.45,0.00020547,2]
[323434668,1713984696505,-8055.98,0.00020547,2]
[323434669,1713984696514,-10090.6,0.00020547,2]
[323434670,1713984696523,-7041.65,0.00020547,2]
[323434671,1713984696533,-522.15,0.00020547,2]
[323434672,1713984696544,-707.89,0.00020547,2]
[323434673,1713984696555,-2261.27,0.00020547,2]
[323434674,1713984696566,-2812.39,0.00020547,2]
[323434675,1713984696576,-1234.39,0.00020547,2]
[323434676,1713984696587,-1371.63,0.00020547,2]
[323434677,1713984696597,-3678.5,0.00020547,2]
[323434678,1713984696607,-6891.8,0.00020547,2]
[323434679,1713984696618,-704.21,0.00020547,2]
[323434680,1713984696629,-925.33,0.00020547,2]
[323434681,1713984696641,-911.08,0.00020547,2]
[323434682,1713984696652,-741.31,0.00020547,2]
[323434683,1713984696667,-642.76361695,0.00020547,2]
[323434684,1713984696679,-3135.11,0.00020547,2]
[323434685,1713984696689,-2399.0,0.00020547,2]
[323434686,1713984696699,-872.83,0.00020547,2]
[323434687,1713984696709,-500.0,0.00020547,2]
[323434688,1713984696719,-500.0,0.00020547,2]
[323434689,1713984696729,-3286.45,0.00020547,2]
[323434690,1713984696740,-612.33,0.00020547,2]
[323434691,1713984696750,-8567.18,0.00020547,2]
[323434692,1713984696761,-1176.79,0.00020547,2]
[323434693,1713984696771,-984.91,0.00020547,2]
[323434694,1713984696780,-500.0,0.00020547,2]
[323434695,1713984696790,-500.0,0.00020547,2]
[323434696,1713984696801,-1391.58,0.00020547,2]
[323434697,1713984696811,-1326.81,0.00020547,2]
[323434698,1713984696823,-500.0,0.00020547,2]
[323434699,1713984696836,-604.22,0.00020547,2]
[323434700,1713984696848,-613.12,0.00020547,2]
[323434701,1713984696860,-2262.73,0.00020547,2]
[323434702,1713984696871,-1674.86,0.00020547,2]
[323434703,1713984696883,-692.01,0.00020547,2]
[323434704,1713984696894,-623.72,0.00020547,2]
[323434705,1713984696905,-500.0,0.00020547,2]
[323434706,1713984696924,-623.43,0.00020547,2]
[323434707,1713984696936,-1947.810485,0.00020548,2]
[323434708,1713984696948,-3162.0,0.00020647,2]
[323434709,1713984696961,-500.0,0.00020821,2]
[323434710,1713984696975,-625.0,0.00020821,2]
[323434711,1713984696987,-674.8,0.00020821,2]
[323434712,1713984696999,-585.29,0.00020821,2]
[323434713,1713984697010,-716.83,0.00020821,2]
[323434714,1713984697023,-500.0,0.00020821,2]
[323434715,1713984697035,-560.98,0.00020821,2]
[323434716,1713984697047,-722.43,0.00020821,2]
[323434717,1713984697060,-839.18,0.00020821,2]
[323434718,1713984697072,-500.0,0.00020821,2]
[323434719,1713984697084,-1155.53,0.00020821,2]
[323434720,1713984697096,-2033.21,0.00020821,2]
[323434721,1713984697108,-1717.84,0.00020821,2]
[323434722,1713984697120,-1292.95,0.00020821,2]
[323434723,1713984697132,-1786.12,0.00020821,2]
[323434724,1713984697144,-1139.75,0.00020821,2]
[323434725,1713984697159,-603.4,0.00020821,2]
[323434726,1713984697173,-978.62,0.00020821,2]
[323434727,1713984697185,-902.13,0.00020821,2]
[323434728,1713984697197,-999.37,0.00020821,2]
[323434729,1713984697209,-789.38,0.00020821,2]
[323434730,1713984697220,-864.27,0.00020821,2]
[323434731,1713984697232,-1005.48,0.00020821,2]
[323434732,1713984697245,-2278.55,0.00020821,2]
[323434733,1713984697259,-708.42,0.00020821,2]
[323434734,1713984697272,-500.0,0.00020821,2]
[323434735,1713984697289,-500.0,0.00020821,2]
[323434736,1713984697301,-785.8,0.00020821,2]
[323434737,1713984697313,-695.13,0.00020821,2]
[323434738,1713984697325,-999.88,0.00020821,2]
[323434739,1713984697338,-1909.77,0.00020821,2]
[323434740,1713984697351,-500.0,0.00020821,2]
[323434741,1713984697362,-634.31,0.00020821,2]
[323434742,1713984697376,-1645.24,0.00020821,2]
[323434743,1713984697389,-2192.71,0.00020821,2]
[323434744,1713984697402,-736.48,0.00020821,2]
[323434745,1713984697419,-500.0,0.00020821,2]
[323434746,1713984697431,-691.26,0.00020821,2]
[323434747,1713984697442,-500.0,0.00020821,2]
[323434748,1713984697454,-1002.4,0.00020821,2]
[323434749,1713984697466,-650.3,0.00020821,2]
[323434750,1713984697478,-1100.44,0.00020821,2]
[323434751,1713984697492,-693.43,0.00020821,2]
[323434752,1713984697505,-534.56,0.00020821,2]
[323434753,1713984697516,-500.0,0.00020821,2]
[323434754,1713984697527,-500.0,0.00020821,2]
[323434755,1713984697538,-1280.96,0.00020821,2]
[323434756,1713984697550,-515.07,0.00020821,2]
[323434757,1713984697561,-1572.17,0.00020821,2]
[323434758,1713984697572,-2597.28,0.00020821,2]
[323434759,1713984697583,-539.11,0.00020821,2]
[323434760,1713984697594,-1730.28,0.00020821,2]
[323434761,1713984697605,-247.30487885,0.00020821,2]
[323434762,1713984697616,-553.14,0.00020821,2]
[323434763,1713984697627,-1050.14,0.00020821,2]
[323434764,1713984697637,-2490.79,0.00020821,2]
[323434765,1713984697648,-939.73,0.00020821,2]
[323434766,1713984697663,-254.58978859,0.00020821,2]
[323434767,1713984697675,-1217.82,0.00020821,2]
[323434768,1713984697686,-1977.88,0.00020821,2]
[323434769,1713984697697,-979.24,0.00020821,2]
[323434770,1713984697708,-571.61,0.00020821,2]
[323434771,1713984697718,-1094.17,0.00020821,2]
[323434772,1713984697729,-1357.41,0.00020821,2]
[323434773,1713984697739,-1382.9,0.00020821,2]
[323434774,1713984697749,-1158.93,0.00020821,2]
[323434775,1713984697759,-1002.6,0.00020821,2]
[323434776,1713984697769,-20762.57,0.00020821,2]
[323434777,1713984697779,-1565.04,0.00020821,2]
[323434778,1713984697788,-1005.95,0.00020821,2]
[323434779,1713984697798,-19373.57,0.00020821,2]
[323434780,1713984697808,-908.92,0.00020821,2]
[323434781,1713984697818,-1126.69,0.00020821,2]
[323434782,1713984697827,-1323.24,0.00020821,2]
[323434783,1713984697838,-2676.08,0.00020821,2]
[323434784,1713984697848,-541.01,0.00020821,2]
[323434785,1713984697857,-4954.95,0.00020821,2]
[323434786,1713984697867,-637.03,0.00020821,2]
[323434787,1713984697877,-806.42,0.00020821,2]
[323434788,1713984697888,-12995.55,0.00020821,2]
[323434789,1713984697897,-2682.8,0.00020821,2]
[323434790,1713984697910,-1763.41,0.00020821,2]
[323434791,1713984697920,-500.0,0.00020821,2]
[323434792,1713984697930,-7231.97,0.00020821,2]
[323434793,1713984697940,-1109.8,0.00020821,2]
[323434794,1713984697950,-703.53,0.00020821,2]
[323434795,1713984697960,-1396.91,0.00020821,2]
[323434796,1713984697969,-1419.45,0.00020821,2]
[323434797,1713984697979,-8055.98,0.00020821,2]
[323434798,1713984697988,-10090.6,0.00020821,2]
[323434799,1713984697998,-7041.65,0.00020821,2]
[323434800,1713984698008,-522.15,0.00020821,2]
[323434801,1713984698018,-707.89,0.00020821,2]
[323434802,1713984698028,-2261.27,0.00020821,2]
[323434803,1713984698037,-2812.39,0.00020821,2]
[323434804,1713984698047,-1234.39,0.00020821,2]
[323434805,1713984698057,-1371.63,0.00020821,2]
[323434806,1713984698067,-3678.5,0.00020821,2]
[323434807,1713984698077,-6891.8,0.00020821,2]
[323434808,1713984698087,-704.21,0.00020821,2]
[323434809,1713984698097,-925.33,0.00020821,2]
[323434810,1713984698108,-911.08,0.00020821,2]
[323434811,1713984698118,-741.31,0.00020821,2]
[323434812,1713984698128,-3135.11,0.00020821,2]
[323434813,1713984698138,-2399.0,0.00020821,2]
[323434814,1713984698149,-872.83,0.00020821,2]
[323434815,1713984698163,-500.0,0.00020821,2]
[323434816,1713984698173,-500.0,0.00020821,2]
[323434817,1713984698184,-3286.45,0.00020821,2]
[323434818,1713984698196,-612.33,0.00020821,2]
[323434819,1713984698206,-8567.18,0.00020821,2]
[323434820,1713984698217,-1176.79,0.00020821,2]
[323434821,1713984698228,-984.91,0.00020821,2]
[323434822,1713984698239,-500.0,0.00020821,2]
[323434823,1713984698252,-500.0,0.00020821,2]
[323434824,1713984698263,-1391.58,0.00020821,2]
[323434825,1713984698275,-1326.81,0.00020821,2]
[323434826,1713984698292,-469.55219308,0.00020821,2]
[323434827,1713984698303,-604.22,0.00020821,2]
[323434828,1713984698315,-613.12,0.00020821,2]
[323434829,1713984698326,-2262.73,0.00020821,2]
[323434830,1713984698338,-1674.86,0.00020821,2]
[323434831,1713984698350,-692.01,0.00020821,2]
[323434832,1713984698361,-623.72,0.00020821,2]
[323434833,1713984698374,-500.0,0.00020821,2]
[323434834,1713984698385,-623.43,0.00020821,2]
[323434835,1713984698395,-236.35471075,0.00021,2]
[323434836,1713984698405,-197.08473987,0.00021,2]
[323434837,1713984698422,-10000.13815675,0.00021,2]
[323434838,1713984698433,-45406.0522318,0.00021,2]
[323434839,1713984698443,-160.77330385,0.00021,2]
[323434840,1713984698453,-478.0,0.00021,2]
[323434841,1713984698464,-152.0,0.00021,2]
[323434842,1713984698474,-1088.8947663,0.00021,2]
[323434843,1713984698484,-390.77447339,0.00021011,2]
[323434844,1713984698495,-150.0,0.0002103,2]
[323434845,1713984698505,-146770.0,0.00021036,2]
[323434846,1713984698515,-500.0,0.00021095,2]
[323434847,1713984698526,-625.0,0.00021095,2]
[323434848,1713984698536,-674.8,0.00021095,2]
[323434849,1713984698546,-585.29,0.00021095,2]
[323434850,1713984698556,-716.83,0.00021095,2]
[323434851,1713984698567,-500.0,0.00021095,2]
[323434852,1713984698577,-560.98,0.00021095,2]
[323434853,1713984698588,-722.43,0.00021095,2]
[323434854,1713984698598,-839.18,0.00021095,2]
[323434855,1713984698608,-500.0,0.00021095,2]
[323434856,1713984698618,-1155.53,0.00021095,2]
[323434857,1713984698628,-2033.21,0.00021095,2]
[323434858,1713984698639,-1717.84,0.00021095,2]
[323434859,1713984698649,-1292.95,0.00021095,2]
[323434860,1713984698662,-1786.12,0.00021095,2]
[323434861,1713984698672,-1139.75,0.00021095,2]
[323434862,1713984698683,-603.4,0.00021095,2]
[323434863,1713984698694,-978.62,0.00021095,2]
[323434864,1713984698705,-902.13,0.00021095,2]
[323434865,1713984698715,-999.37,0.00021095,2]
[323434866,1713984698726,-789.38,0.00021095,2]
[323434867,1713984698737,-864.27,0.00021095,2]
[323434868,1713984698747,-1005.48,0.00021095,2]
[323434869,1713984698758,-2278.55,0.00021095,2]
[323434870,1713984698768,-708.42,0.00021095,2]
[323434871,1713984698779,-500.0,0.00021095,2]
[323434872,1713984698790,-500.0,0.00021095,2]
[323434873,1713984698800,-785.8,0.00021095,2]
[323434874,1713984698810,-695.13,0.00021095,2]
[323434875,1713984698820,-999.88,0.00021095,2]
[323434876,1713984698831,-1909.77,0.00021095,2]
[323434877,1713984698841,-545.36853343,0.00021095,2]
[323434878,1713984698852,-634.31,0.00021095,2]
[323434879,1713984698862,-1645.24,0.00021095,2]
[323434880,1713984698872,-2192.71,0.00021095,2]
[323434881,1713984698883,-736.48,0.00021095,2]
[323434882,1713984698893,-500.0,0.00021095,2]
[323434883,1713984698903,-691.26,0.00021095,2]
[323434884,1713984698918,-500.0,0.00021095,2]
[323434885,1713984698929,-1002.4,0.00021095,2]
[323434886,1713984698940,-650.3,0.00021095,2]
[323434887,1713984698950,-1100.44,0.00021095,2]
[323434888,1713984698960,-693.43,0.00021095,2]
[323434889,1713984698971,-534.56,0.00021095,2]
[323434890,1713984698981,-500.0,0.00021095,2]
[323434891,1713984698991,-500.0,0.00021095,2]
[323434892,1713984699002,-1280.96,0.00021095,2]
[323434893,1713984699013,-515.07,0.00021095,2]
[323434894,1713984699116,-1572.17,0.00021095,2]
[323434895,1713984699128,-2597.28,0.00021095,2]
[323434896,1713984699138,-539.11,0.00021095,2]
[323434897,1713984699149,-1730.28,0.00021095,2]
[323434898,1713984699164,-553.14,0.00021095,2]
[323434899,1713984699175,-1050.14,0.00021095,2]
[323434900,1713984699186,-2490.79,0.00021095,2]
[323434901,1713984699197,-939.73,0.00021095,2]
[323434902,1713984699208,-1217.82,0.00021095,2]
[323434903,1713984699220,-1977.88,0.00021095,2]
[323434904,1713984699231,-979.24,0.00021095,2]
[323434905,1713984699241,-571.61,0.00021095,2]
[323434906,1713984699251,-1094.17,0.00021095,2]
[323434907,1713984699261,-1357.41,0.00021095,2]
[323434908,1713984699271,-1382.9,0.00021095,2]
[323434909,1713984699283,-1158.93,0.00021095,2]
[323434910,1713984699294,-1002.6,0.00021095,2]
[323434911,1713984699304,-20762.57,0.00021095,2]
[323434912,1713984699316,-1565.04,0.00021095,2]
[323434913,1713984699327,-1005.95,0.00021095,2]
[323434914,1713984699337,-19373.57,0.00021095,2]
[323434915,1713984699347,-908.92,0.00021095,2]
[323434916,1713984699357,-1126.69,0.00021095,2]
[323434917,1713984699367,-1323.24,0.00021095,2]
[323434918,1713984699377,-2676.08,0.00021095,2]
[323434919,1713984699387,-541.01,0.00021095,2]
[323434920,1713984699398,-4954.95,0.00021095,2]
[323434921,1713984699411,-637.03,0.00021095,2]
[323434922,1713984699422,-806.42,0.00021095,2]
[323434923,1713984699432,-12995.55,0.00021095,2]
[323434924,1713984699443,-2682.8,0.00021095,2]
[323434925,1713984699454,-1763.41,0.00021095,2]
[323434926,1713984699464,-500.0,0.00021095,2]
[323434927,1713984699474,-7231.97,0.00021095,2]
[323434928,1713984699485,-1109.8,0.00021095,2]
[323434929,1713984699495,-703.53,0.00021095,2]
[323434930,1713984699506,-1396.91,0.00021095,2]
[323434931,1713984699516,-1419.45,0.00021095,2]
[323434932,1713984699526,-8055.98,0.00021095,2]
[323434933,1713984699536,-10090.6,0.00021095,2]
[323434934,1713984699546,-7041.65,0.00021095,2]
[323434935,1713984699688,-522.15,0.00021095,2]
[323434936,1713984699700,-707.89,0.00021095,2]
[323434937,1713984699710,-2261.27,0.00021095,2]
[323434938,1713984699721,-2812.39,0.00021095,2]
[323434939,1713984699731,-1234.39,0.00021095,2]
[323434940,1713984699741,-1371.63,0.00021095,2]
[323434941,1713984699753,-3678.5,0.00021095,2]
[323434942,1713984699763,-6891.8,0.00021095,2]
[323434943,1713984699774,-704.21,0.00021095,2]
[323434944,1713984699785,-925.33,0.00021095,2]
[323434945,1713984699796,-911.08,0.00021095,2]
[323434946,1713984699806,-741.31,0.00021095,2]
[323434947,1713984699816,-3135.11,0.00021095,2]
[323434948,1713984699826,-2399.0,0.00021095,2]
[323434949,1713984699836,-872.83,0.00021095,2]
[323434950,1713984699846,-500.0,0.00021095,2]
[323434951,1713984699857,-500.0,0.00021095,2]
[323434952,1713984699867,-3286.45,0.00021095,2]
[323434953,1713984699877,-612.33,0.00021095,2]
[323434954,1713984699887,-8567.18,0.00021095,2]
[323434955,1713984699897,-1176.79,0.00021095,2]
[323434956,1713984699911,-984.91,0.00021095,2]
[323434957,1713984699922,-500.0,0.00021095,2]
[323434958,1713984699932,-500.0,0.00021095,2]
[323434959,1713984699942,-1391.58,0.00021095,2]
[323434960,1713984699952,-1326.81,0.00021095,2]
[323434961,1713984699962,-613.12,0.00021095,2]
[323434962,1713984699972,-2262.73,0.00021095,2]
[323434963,1713984699983,-604.22,0.00021095,2]
[323434964,1713984699993,-1674.86,0.00021095,2]
[323434965,1713984700003,-692.01,0.00021095,2]
[323434966,1713984700014,-623.72,0.00021095,2]
[323434967,1713984700025,-500.0,0.00021095,2]
[323434968,1713984700035,-623.43,0.00021095,2]
[323434969,1713984700046,-620.00000002,0.00021233,2]
[323434970,1713984700057,-384.65086679,0.00021369,2]
[323434971,1713984700068,-625.0,0.00021369,2]
[323434972,1713984700078,-674.8,0.00021369,2]
[323434973,1713984700089,-585.29,0.00021369,2]
[323434974,1713984700099,-716.83,0.00021369,2]
[323434975,1713984700110,-500.0,0.00021369,2]
[323434976,1713984700120,-560.98,0.00021369,2]
[323434977,1713984700130,-722.43,0.00021369,2]
[323434978,1713984700140,-839.18,0.00021369,2]
[323434979,1713984700150,-500.0,0.00021369,2]
[323434980,1713984700162,-1155.53,0.00021369,2]
[323434981,1713984700172,-2033.21,0.00021369,2]
[323434982,1713984700181,-1717.84,0.00021369,2]
[323434983,1713984700190,-1292.95,0.00021369,2]
[323434984,1713984700200,-1786.12,0.00021369,2]
[323434985,1713984700209,-1139.75,0.00021369,2]
[323434986,1713984700218,-603.4,0.00021369,2]
[323434987,1713984700228,-978.62,0.00021369,2]
[323434988,1713984700237,-902.13,0.00021369,2]
[323434989,1713984700246,-999.37,0.00021369,2]
[323434990,1713984700256,-789.38,0.00021369,2]
[323434991,1713984700265,-864.27,0.00021369,2]
[323434992,1713984700273,-1005.48,0.00021369,2]
[323434993,1713984700284,-2278.55,0.00021369,2]
[323434994,1713984700294,-708.42,0.00021369,2]